Cogmind - Beta 14 @@@ ROGUE MODE // 2024.12.31 @ 07:16:02 Player: Demo Result: Destroyed by as-45086 with Assembled Rifle Performance ------------- Evolutions (0) 0 Regions Visited (2) 400 Robots Destroyed (9) 45 Value Destroyed (71) 71 Prototype IDs (0) 0 Alien Tech Used (0) 0 Bonus (0) 0 TOTAL SCORE: 516 Bonus ------- None Cogmind --------- Core Integrity 0/250 Matter 251/300 Energy 99/100 System Corruption 1% Temperature Cool (0) Movement Core (100) Ox1 Location -10/Mines Parts ------- > --- POWER (1) -------- (None) > --- PROPULSION (2) --- (None) > --- UTILITY (2) ------ Seismic Detector > --- WEAPON (2) ------- Grenade Launcher > --- INVENTORY (5) ---- Light Ion Engine Large Storage Unit High-capacity Matter Pod (22) Improved Terrain Scanner Peak State ------------ > --- POWER ------------ (None) > --- PROPULSION ------- Light Treads Light Treads > --- UTILITY ---------- Seismic Detector > --- WEAPON ----------- Small Laser Small Laser > --- INVENTORY -------- Light Ion Engine Wheel Wheel Small Storage Unit EM Pulse Gun [Rating: 5] Favorites ----------- Power None Propulsion Light Treads Treads Light Treads Wheel Wheel Utility Seismic Detector Device Seismic Detector Weapon Small Laser Energy Gun Small Laser Launcher Grenade Launcher Build | -11 -10 -10 ------- Run | Yrd Mat Min Slots Evolved . | . . . Power . | . . . Propulsion . | . . . Utility . | . . . Weapon . | . . . Parts Attached 10 | 5 1 4 Power . | . . . Engine . | . . . Core . | . . . Reactor . | . . . Propulsion 3 | 2 . 1 Treads 2 | 2 . . Leg . | . . . Wheel 1 | . . 1 Hover . | . . . Flight . | . . . Utility 1 | 1 . . Device 1 | 1 . . Storage . | . . . Processor . | . . . Hackware . | . . . Protection . | . . . Artifact . | . . . Weapon 6 | 2 1 3 Energy Gun 3 | 2 . 1 Energy Cannon . | . . . Ballistic Gun . | . . . Ballistic Cannon . | . . . Launcher 3 | . 1 2 Special Weapon . | . . . Impact Weapon . | . . . Slashing Weapon . | . . . Piercing Weapon . | . . . Special Melee Weapon . | . . . Unidentified Prototypes . | . . . Parts Lost 5 | . . 5 Power . | . . . Propulsion 3 | . . 3 Utility . | . . . Weapon 2 | . . 2 Highest Loss Streak 5 | . . 5 To Critical Strikes . | . . . Average Slot Usage (%) 46 | . 71 31 Treads 14 | . 28 6 Wheel 1 | . . 1 Device 14 | . 14 14 Energy Gun 13 | . 26 6 Launcher 2 | . 2 2 Peak Build Rating 5 | 5 5 5 Average Rating 3 | 3 5 2 On Entrance 3 | . 5 5 Naked Turns . | . . . Heaviest Build 5 | 3 5 5 Greatest Support 10 | 3 3 10 Greatest Overweight (x) 1 | . 1 1 Average Overweight (x) . | . . . Largest Inventory Capacity 5 | 5 5 5 Average Capacity 5 | 5 5 5 Most Carried 5 | 5 5 5 Average Carried 3 | 3 4 3 Final Capacity 5 | 5 5 5 Final Carried 5 | 5 5 4 Class Distribution -------------------- 100% | Mutant Dominant Class ---------------- Mutant | -10/Materials Mutant | -10/Mines Resources | -11 -10 -10 ----------- Run | Yrd Mat Min Matter Collected 308 | 250 . 58 Remotely . | . . . Salvage Created 238 | 177 19 42 Parts 14 | 10 4 . Haulers Intercepted . | . . . Recyclers Shooed . | . . . Parts Field Recycled . | . . . Retrieved Matter . | . . . Parts Self-Destructed . | . . . Prevented . | . . . Kills | -11 -10 -10 ------- Run | Yrd Mat Min Combat Hostiles Destroyed 6 | . 3 3 Guns 2 | . . 2 AOE 4 | . 3 1 Classes Destroyed 4 | 2 1 1 Tunneler 5 | 4 . 1 Recycler 1 | 1 . . Swarmer 3 | . 3 . Assembled 3 | . . 3 Best Kill Streak 5 | 5 3 3 Combat Bots Only 3 | . 3 3 Max Kills in Single Turn 2 | 1 2 1 Gunslinging . | . . . Exploded 2 | . 2 1 Melee . | . . . Uniques/NPCs Destroyed . | . . . Combat | -11 -10 -10 -------- Run | Yrd Mat Min Hostile Shots Fired 61 | . 9 52 Missed 20 | . 3 17 Damage Taken 778 | . 108 670 Core 258 | . 16 242 Absorbed by Shields . | . . . Core Remaining (%) 100 | 100 . . Volleys Fired 36 | 10 11 15 Largest 2 | 2 2 2 Hottest 80 | 80 80 80 Shots Fired 62 | 20 22 20 Gun 56 | 20 20 16 Cannon . | . . . Launcher 6 | . 2 4 Special . | . . . Kinetic . | . . . Thermal 51 | 20 20 11 Explosive 6 | . 2 4 Electromagnetic 5 | . . 5 Robot Hit Streak 7 | 4 7 5 Robot Miss Streak 5 | 1 2 5 Penetration Max . | . . . Secondary Targets . | . . . Shots Hit Robots 31 | 10 12 9 Core Hits 18 | 6 4 8 Critical Kills . | . . . Critical Parts Destroyed . | . . . Critical Strikes 1 | . . 1 Corrupt 1 | . . 1 Melee Attacks . | . . . Impact . | . . . Slashing . | . . . Piercing . | . . . Sneak Attacks . | . . . Combat Hostiles . | . . . Follow-up Attacks . | . . . Damage Inflicted 584 | 108 233 243 Guns 327 | 108 123 96 Cannons . | . . . Explosions 245 | . 110 135 Melee . | . . . Ramming 12 | . . 12 Kinetic . | . . . Thermal 287 | 108 123 56 Explosive 245 | . 110 135 Electromagnetic 40 | . . 40 Impact . | . . . Slashing . | . . . Piercing . | . . . Highest Corruption 1 | . 1 1 Average Corruption 1 | . 1 1 Corruption Purged . | . . . Corruption Blocked . | . . . Effects 2 | . . 2 Message Errors 1 | . . 1 Matter Fused 1 | . . 1 Overload Shots . | . . . Overflow Damage 26 | . 12 14 Projectiles . | . . . Explosions 26 | . 12 14 Melee . | . . . Knockbacks . | . . . Impact . | . . . Kinetic . | . . . Secondary . | . . . Self-Inflicted Damage 90 | . . 90 Shots 3 | . . 3 Rammed 3 | . . 3 Targets Rammed 3 | . . 3 Kicked . | . . . Crushed . | . . . Highest Temperature 34 | 21 34 26 Average Temperature 12 | 8 18 9 Received Heat Transfer 109 | . 9 100 Siege Activations . | . . . Robots Corrupted . | . . . Combat Hostiles . | . . . Parts Fried . | . . . Impact Corruptions . | . . . Robots Melted . | . . . Combat Hostiles . | . . . Parts Melted . | . . . Heat Transferred 650 | 250 275 125 Parts Sabotaged . | . . . Parts Stolen . | . . . Parts Stripped . | . . . Power Chain Reactions . | . . . Alert | -11 -10 -10 ------- Run | Yrd Mat Min Peak Influence 156 | 25 156 90 Initial 60 | . 16 60 Average 45 | 8 46 58 Maximum Alert Level . | . . . Low Security (%) 100 | 100 100 100 Level 1 . | . . . Level 2 . | . . . Level 3 . | . . . Level 4 . | . . . Level 5 . | . . . High Security . | . . . Max Security . | . . . Squads Dispatched 1 | . 1 . Investigation . | . . . Extermination . | . . . Reinforcement 1 | . 1 . Assault . | . . . Garrison . | . . . Intercept . | . . . Searches Triggered . | . . . Construction Impeded . | . . . Haulers Reinforced . | . . . Active Scanning Responses . | . . . Cargo Convoy Interrupts . | . . . Stealth | -11 -10 -10 --------- Run | Yrd Mat Min Distress Signals . | . . . Communications Jammed . | . . . Distress Signals . | . . . Times Spotted 34 | . 11 23 Peak Tracking Total 16 | . 6 16 Tactical Retreats 4 | . 1 3 Traps | -11 -10 -10 ------- Run | Yrd Mat Min Traps Triggered 2 | . 2 . Indirectly . | . . . Trap Hack Attempts . | . . . Triggered . | . . . Disarmed . | . . . Reprogrammed . | . . . Reused . | . . . Traps Extracted . | . . . Installed . | . . . Triggered . | . . . Machines | -11 -10 -10 ---------- Run | Yrd Mat Min Machines Disabled . | . . . Max in Single Turn . | . . . Machines Repaired . | . . . Machines Dismantled . | . . . Machines Sabotaged . | . . . Overloaded Fab Kills . | . . . Hacking | -11 -10 -10 --------- Run | Yrd Mat Min Machines Accessed 1 | . 1 . Terminals 1 | . 1 . Fabricators . | . . . Repair Stations . | . . . Recycling Units . | . . . Scanalyzers . | . . . Garrison Access . | . . . Total Hacks 2 | . 2 . Successful . | . . . Failed 2 | . 2 . Catastrophic 1 | . 1 . Database Lockouts . | . . . Manual 2 | . 2 . Terminals 2 | . 2 . Fabricators . | . . . Repair Stations . | . . . Recycling Units . | . . . Scanalyzers . | . . . Garrison Access . | . . . Terminal Hacks . | . . . Fabricator Hacks . | . . . Repair Station Hacks . | . . . Recycling Unit Hacks . | . . . Scanalyzer . | . . . Garrison Access Hacks . | . . . Unauthorized Hacks . | . . . Terminals . | . . . Fabricators . | . . . Repair Stations . | . . . Recycling Units . | . . . Scanalyzers . | . . . Garrison Access . | . . . Data Cores Recovered . | . . . Used . | . . . Hacking Detections 1 | . 1 . Full Trace Events . | . . . Feedback Events . | . . . Feedback Blocked . | . . . Robot Schematics Acquired . | . . . Robots Built . | . . . Authchips . | . . . Time . | . . . Total Robot Build Rating . | . . . Part Schematics Acquired . | . . . Parts Built . | . . . Authchips . | . . . Time . | . . . Total Part Build Rating . | . . . Parts Repaired . | . . . Time . | . . . Parts Recycled . | . . . Recycled Matter . | . . . Retrieved Matter . | . . . Retrieved Components . | . . . Parts Scanalyzed . | . . . Part Schematics Acquired . | . . . Parts Damaged . | . . . Bothacking | -11 -10 -10 ------------ Run | Yrd Mat Min Used RIF Installer . | . . . Robots Hacked . | . . . Non-combat . | . . . Combat . | . . . Robot Hacks Applied . | . . . Relay Couplers Released . | . . . Fabnet Peak Effective % . | . . . Robots Rewired . | . . . Allies Hacked . | . . . Hacks Repelled . | . . . Allies | -11 -10 -10 -------- Run | Yrd Mat Min Total Allies . | . . . Largest Group . | . . . Highest-Rated Group . | . . . Highest-Rated Ally . | . . . Total Orders . | . . . Ally Attacks . | . . . Total Damage . | . . . Kills . | . . . Allies Corrupted . | . . . Allies Melted . | . . . Intel | -11 -10 -10 ------- Run | Yrd Mat Min Robot Analysis Total . | . . . Derelict Logs Recovered . | . . . Drone Launches . | . . . Drone Recoveries . | . . . Exploration | -11 -10 -10 ------------- Run | Yrd Mat Min Turns Passed 465 | 88 140 237 Spaces Moved 390 | 82 175 133 Core 384 | 82 175 127 Treads . | . . . Legs . | . . . Wheels 6 | . . 6 Hover . | . . . Flight . | . . . Fastest Speed 50 | 50 50 50 Average Speed 57 | 50 54 66 Slowest Speed 100 | 50 100 100 Overloaded Moves . | . . . Propulsion Burnouts . | . . . Robots Hopped . | . . . Cave-ins Triggered . | . . . Exploration Rate (%) 23 | 4 36 29 Regions Visited 2 Branch Regions 1 Pre-discovered Areas . | . . . Known Exits Taken . | . . . Unknown Exits Taken 2 | 1 1 . Scrap Searched 1 | . . 1 Spaces Dug 10 | . . 10 Terrain Destroyed 45 | . 11 34 Melee . | . . . Projectile . | . . . AOE 45 | . 11 34 Terrain Rammed . | . . . Walls Destroyed . | . . . Machines Disabled . | . . . Actions | -11 -10 -10 --------- Run | Yrd Mat Min Total 570 | 109 197 264 Wait 109 | . 5 104 Move 388 | 81 174 133 Hop . | . . . Pick Up 16 | 11 3 2 Fast Attach 1 | 1 . . Attach 8 | 4 . 4 Detach 2 | . . 2 Swap 1 | . 1 . Drop 6 | 2 3 1 Fire 36 | 10 11 15 Melee . | . . . Ram 3 | . . 3 Kick . | . . . Crush . | . . . Escape Stasis . | . . . Rewire . | . . . Trap . | . . . Miscellaneous . | . . . Route ------- -11/Scrapyard -10/Materials -10/Mines History --------- Turn | Location | Event 5 | -11/Scrapyard | Discovered new exit (range 16) 89 | -11/Scrapyard | Entered Materials 222 | -10/Materials | Discovered new exit (range 7) 229 | -10/Materials | Entered Mines 230 | -10/Mines | Assembled infested the area 309 | -10/Mines | Core integrity fell below 50% 310 | -10/Mines | Build established: Mutant 319 | -10/Mines | Core integrity fell below 20% 341 | -10/Mines | Lost 5 parts (3n2w) 466 | -10/Mines | Destroyed by as-45086 with Assembled Rifle Last Messages --------------- 00281_ Found Sml. Matter Pod. 00281_ Found 38 Matter. 00282_ Acquired 38 matter. 00287_ as-87984 misfires. 00288_ as-87984 destroyed. 00289_ The unstable cave ceiling collapses. 00290_ Lgt. Treads destroyed. 00290_ EM Pulse Gun destroyed. 00292_ The unstable cave ceiling collapses. 00292_ Wheel destroyed. 00293_ F6CCFG<,A%=OM:7MHPNT 00310_ Sml. Laser destroyed. 00311_ Slammed into as-45086. 00337_ T-07 Excavator is excavating. 00414_ System corrupted: Matter fused (-9). 00417_ T-07 Excavator is excavating. 00446_ T-07 Excavator destroyed. 00456_ The unstable cave ceiling collapses. 00463_ Acquired Imp. Terrain Scanner. 00465_ Acquired Lgt. Ion Engine. Map ----- +----------------------------------------------------+ | ????????????????????????????????????? | | ????????????????????????????????????? | | ????????????????????????????????????? | | ????????????????????????????????????? | | ?????????????? ?????????????????????? | | ?????????????? ?????????????????????? | | ?????????????? ?????????????????????? | | ?????????????? ?????????????????????? | | ?????????????? ?????????????????????? | | ?????????????? ?????????????????????? | | ?????????????# ?????????????????????? | | ????????????# ?????????????????????? | | ????????????# #?????????????????????? | | ????????????# #?????????????????????? | | ????????????# #?????????????????????? | | ????????????# #?????????????????????? | | ????????????# #?????????????????????? | | ????????????# #?????????????????????? | | ????????????#a#?????????????????????? | | ????????????# #??????####???????????? | | ????????????# #?????## ####????????? | | ????????????# #????## #????????? | | ???????????## ###### # #????????? | | ???????????#% ##???????? | | ???????????# ####### #???????? | | ???????????#@#?????## #???????? | | ???????????# ######## ##???????? | | ???????????# ### ##????????? | | ???????????####### #?# #?????????? | | ?????????????????# #?######?????????? | | ?????????????????# #????????????????? | | ????????????###??# #????????????????? | | ???????????## ### #????????????????? | | ??????????## ## ##########???????? | | ??????????# ! #???????? | | ???????# *% #??????? | | ??????# ### #### !%| #??? | | ??????# #?# #??????? ###???? | | ??????## ?# #??????????????? | | ???????## ?# #?????######???? | | ????????##### ### #????## ##??? | | ????????????######?# #???## #??# | | ?????#####?????##### ##??# * ## # | | ????## ####### ## ##?# " # # | | ???## ### " | | ???# #### " | | ???# #### % | | ???## ### =%= | | ????## ##### ## ##??# | | ?????## ##???#### ####???# | +----------------------------------------------------+ Best States ------------- Heat Dissipation 25 Energy Generation 5 Energy Capacity 100 Matter Stores 300 Matter Capacity 300 Sight Range 16 Terrain Scan Density 10 Evasion (%) 50 Item Schematics ----------------- None Robot Schematics ------------------ None Fabricated ------------ Nothing Alien Tech Used ----------------- None Achievements -------------- None Challenges ------------ None Game ------ Seed AntimatterThunderExpander Manual? 0 Play Time 00:07:08 Cumulative 99.1 hours Start 2024.12.31 @ 07:11:06 End 2024.12.31 @ 07:16:02 Sessions 1 Manual Loads 0 Difficulty Rogue Special Mode None Game No. 115 Rogue 115 Adventurer 0 Explorer 0 Win Type - Total 1 Types 1/0/0/0/0/0/0/0/0 Lore% 31 Gallery% 62 Achievement% 50 Wizard Run 0 Options --------- Layout 1 ASCII 0 Keyboard 0 Movement Numpad Keybinds 0 Fullscreen 1 Font 24/Smallcaps Map View 50x35 Zoom Use 0% Tactical HUD 1 Map Filters NONE Filters NONE Steam 1 RUN: b86e555e-86aa-4845-8b80-8bfd23822d5b